fUST/lending_fUST_20250424
["ID","MTS","AMOUNT","RATE_DAILY","PERIOD"]
[358858069,1745489437610,-4790.61,0.00019178,2]
[358858070,1745489437620,-997.02,0.00019178,2]
[358858071,1745489437629,-500.0,0.00019178,2]
[358858072,1745489437639,-501.5162689,0.00019178,2]
[358858073,1745489437648,-500.0,0.00019178,2]
[358858074,1745489437657,-813.07,0.00019178,2]
[358858075,1745489437667,-1112.09,0.00019178,2]
[358858076,1745489437676,-500.0,0.00019178,2]
[358858077,1745489437684,-500.0,0.00019178,2]
[358858078,1745489437694,-582.89,0.00019178,2]
[358858079,1745489437705,-1475.7,0.00019178,2]
[358858080,1745489437714,-292.88290146,0.00019178,2]
[358858081,1745489437723,-830.22,0.00019178,2]
[358858082,1745489437733,-676.06,0.00019178,2]
[358858083,1745489437743,-500.0,0.00019178,2]
[358858084,1745489437752,-501.2090953,0.00019178,2]
[358858085,1745489437763,-3788.55,0.00019178,2]
[358858086,1745489437772,-522.27,0.00019178,2]
[358858087,1745489437785,-1148.4,0.00019178,2]
[358858088,1745489437795,-1824.6,0.00019178,2]
[358858089,1745489437806,-500.0,0.00019178,2]
[358858090,1745489437817,-601.47,0.00019178,2]
[358858091,1745489437828,-500.0,0.00019178,2]
[358858092,1745489437837,-500.0,0.00019178,2]
[358858093,1745489437846,-500.0,0.00019178,2]
[358858094,1745489437855,-500.0,0.00019178,2]
[358858095,1745489437864,-500.0,0.00019178,2]
[358858096,1745489437874,-4433.4,0.00019178,2]
[358858097,1745489437883,-1019.64,0.00019178,2]
[358858098,1745489437892,-500.0,0.00019178,2]
[358858099,1745489437902,-500.0,0.00019178,2]
[358858100,1745489437911,-500.0,0.00019178,2]
[358858101,1745489437920,-500.0,0.00019178,2]
[358858102,1745489437929,-930.28,0.00019178,2]
[358858103,1745489437938,-151.0,0.00019178,2]
[358858104,1745489437948,-500.0,0.00019178,2]
[358858106,1745489437957,-720.8,0.00019178,2]
[358858107,1745489437966,-500.0,0.00019178,2]
[358858108,1745489437976,-500.0,0.00019178,2]
[358858109,1745489437985,-500.0,0.00019178,2]
[358858110,1745489437994,-1451.68,0.00019178,2]
[358858111,1745489438004,-212.25915642,0.00019178,2]
[358858112,1745489438013,-500.0,0.00019178,2]
[358858113,1745489438023,-151.0,0.00019178,2]
[358858114,1745489438032,-878.44,0.00019178,2]
[358858115,1745489438041,-500.0,0.00019178,2]
[358858116,1745489438050,-504.60093107,0.00019178,2]
[358858117,1745489438061,-500.0,0.00019178,2]
[358858118,1745489438070,-500.0,0.00019178,2]
[358858119,1745489438080,-500.0,0.00019178,2]
[358858120,1745489438089,-556.83,0.00019178,2]
[358858121,1745489438099,-500.0,0.00019178,2]
[358858122,1745489438108,-500.0,0.00019178,2]
[358858123,1745489438118,-500.0,0.00019178,2]
[358858125,1745489438127,-500.0,0.00019178,2]
[358858127,1745489438137,-500.0,0.00019178,2]
[358858129,1745489438186,-500.0,0.00019178,2]
[358858131,1745489438198,-10107.57,0.00019178,2]
[358858133,1745489438209,-664.52,0.00019178,2]
[358858135,1745489438219,-500.0,0.00019178,2]
[358858136,1745489438228,-500.0,0.00019178,2]
[358858138,1745489438238,-500.0,0.00019178,2]
[358858140,1745489438247,-3349.47,0.00019178,2]
[358858142,1745489438258,-500.0,0.00019178,2]
[358858144,1745489438266,-500.0,0.00019178,2]
[358858146,1745489438275,-500.0,0.00019178,2]
[358858148,1745489438285,-500.0,0.00019178,2]
[358858150,1745489438297,-500.0,0.00019178,2]
[358858152,1745489438306,-500.0,0.00019178,2]
[358858154,1745489438315,-3297.65,0.00019178,2]
[358858156,1745489438324,-500.0,0.00019178,2]
[358858158,1745489438333,-500.0,0.00019178,2]
[358858160,1745489438342,-578.53,0.00019178,2]
[358858162,1745489438351,-4840.54,0.00019178,2]
[358858163,1745489438361,-500.0,0.00019178,2]
[358858165,1745489438369,-500.0,0.00019178,2]
[358858167,1745489438378,-6053.9,0.00019178,2]
[358858169,1745489438387,-1528.26,0.00019178,2]
[358858171,1745489438396,-500.0,0.00019178,2]
[358858173,1745489438405,-500.0,0.00019178,2]
[358858175,1745489438414,-500.0,0.00019178,2]
[358858177,1745489438423,-500.0,0.00019178,2]
[358858179,1745489438432,-953.91,0.00019178,2]
[358858181,1745489438441,-502.34817361,0.00019178,2]
[358858183,1745489438450,-500.0,0.00019178,2]
[358858185,1745489438460,-500.0,0.00019178,2]
[358858186,1745489438469,-601.0,0.00019178,2]
[358858189,1745489438479,-500.0,0.00019178,2]
[358858192,1745489438488,-501.77172128,0.00019178,2]
[358858194,1745489438497,-740.15,0.00019178,2]
[358858196,1745489438506,-500.0,0.00019178,2]
[358858198,1745489438515,-3353.23,0.00019178,2]
[358858200,1745489438524,-500.0,0.00019178,2]
[358858202,1745489438533,-503.70430637,0.00019178,2]
[358858204,1745489438542,-500.0,0.00019178,2]
[358858206,1745489438552,-500.0,0.00019178,2]
[358858208,1745489438561,-500.0,0.00019178,2]
[358858210,1745489438571,-502.76787948,0.00019178,2]
[358858212,1745489438580,-500.0,0.00019178,2]
[358858214,1745489438590,-500.0,0.00019178,2]
[358858216,1745489438601,-894.56,0.00019178,2]
[358858218,1745489438610,-500.0,0.00019178,2]
[358858220,1745489438619,-151.0,0.00019178,2]
[358858222,1745489438631,-500.0,0.00019178,2]
[358858223,1745489438640,-1155.18,0.00019178,2]
[358858225,1745489438650,-500.0,0.00019178,2]
[358858227,1745489438660,-5489.47,0.00019178,2]
[358858229,1745489438669,-500.0,0.00019178,2]
[358858231,1745489438678,-5293.98,0.00019178,2]
[358858233,1745489438688,-305.69617702,0.00019178,2]
[358858235,1745489438702,-153.36049474,0.00019178,2]
[358858237,1745489438714,-502.98730615,0.00019178,2]
[358858240,1745489438723,-500.0,0.00019178,2]
[358858243,1745489438733,-503.20572733,0.00019178,2]
[358858246,1745489438744,-151.0,0.00019178,2]
[358858248,1745489438754,-151.0,0.00019178,2]
[358858250,1745489438764,-500.0,0.00019178,2]
[358858253,1745489438774,-971.86,0.00019178,2]
[358858256,1745489438784,-500.0,0.00019178,2]
[358858259,1745489438793,-500.0,0.00019178,2]
[358858262,1745489438802,-500.0,0.00019178,2]
[358858265,1745489438812,-500.0,0.00019178,2]
[358858268,1745489438821,-500.0,0.00019178,2]
[358858270,1745489438830,-500.0,0.00019178,2]
[358858272,1745489438839,-500.0,0.00019178,2]
[358858274,1745489438850,-545.21699059,0.00019178,2]
[358858276,1745489438861,-512.23534245,0.00019178,2]
[358858278,1745489438871,-815.22,0.00019178,2]
[358858280,1745489438882,-591.97,0.00019178,2]
[358858282,1745489438891,-500.0,0.00019178,2]
[358858284,1745489438901,-500.0,0.00019178,2]
[358858286,1745489438911,-500.0,0.00019178,2]
[358858288,1745489438920,-500.0,0.00019178,2]
[358858290,1745489438931,-500.0,0.00019178,2]
[358858292,1745489438940,-629.02870263,0.00019178,2]
[358858294,1745489438950,-174.8338161,0.00019178,2]
[358858296,1745489438960,-353.223272,0.00019178,2]
[358858298,1745489438971,-174.8338161,0.00019178,2]
[358858300,1745489438980,-269.6,0.00019194,7]
[358858302,1745489438990,-167.8,0.000192,2]
[358858304,1745489439000,-258.73380978,0.00019207,2]
[358858306,1745489439009,-151.0,0.00019233,2]
[358858308,1745489439019,-151.0,0.00019233,2]
[358858310,1745489439028,-500.0,0.00019233,2]
[358858312,1745489439038,-500.0,0.00019233,2]
[358858314,1745489439047,-151.0,0.00019233,2]
[358858316,1745489439056,-500.0,0.00019233,2]
[358858318,1745489439066,-500.0,0.00019233,2]
[358858320,1745489439075,-199.65421992,0.00019233,2]
[358858321,1745489439085,-151.0,0.00019233,2]
[358858323,1745489439095,-197.53968718,0.00019233,2]
[358858325,1745489439105,-500.0,0.00019233,2]
[358858327,1745489439115,-500.0,0.00019233,2]
[358858329,1745489439124,-184.50677802,0.00019233,2]
[358858331,1745489439133,-151.0,0.00019233,2]
[358858333,1745489439143,-500.0,0.00019233,2]
[358858335,1745489439153,-251.72418231,0.00019233,2]
[358858337,1745489439162,-500.0,0.00019233,2]
[358858339,1745489439172,-500.0,0.00019233,2]
[358858341,1745489439181,-151.0,0.00019288,2]
[358858343,1745489439192,-151.0,0.00019288,2]
[358858345,1745489439201,-500.0,0.00019288,2]
[358858347,1745489439211,-500.0,0.00019288,2]
[358858349,1745489439220,-151.0,0.00019288,2]
[358858351,1745489439229,-500.0,0.00019288,2]
[358858353,1745489439239,-500.0,0.00019288,2]
[358858355,1745489439248,-301.90424997,0.00019288,2]
[358858357,1745489439259,-500.0,0.00019288,2]
[358858359,1745489439268,-355.13046677,0.00019288,2]
[358858361,1745489439277,-295.38866125,0.00019288,2]
[358858363,1745489439288,-500.0,0.00019288,2]
[358858365,1745489439297,-500.0,0.00019288,2]
[358858367,1745489439308,-500.0,0.00019288,2]
[358858369,1745489439317,-292.43600671,0.00019314,2]
[358858371,1745489439327,-1430.35827332,0.00019329,2]
[358858373,1745489439336,-151.0,0.00019342,2]
[358858375,1745489439345,-249.33190238,0.00019342,2]
[358858377,1745489439355,-500.0,0.00019342,2]
[358858379,1745489439364,-500.0,0.00019342,2]
[358858380,1745489439374,-238.78792528,0.00019342,2]
[358858382,1745489439383,-152.11823408,0.00019342,2]
[358858384,1745489439392,-500.0,0.00019342,2]
[358858386,1745489439402,-500.0,0.00019342,2]
[358858388,1745489439412,-500.0,0.00019342,2]
[358858390,1745489439422,-500.0,0.00019342,2]
[358858392,1745489439432,-295.02008718,0.00019342,2]
[358858394,1745489439441,-151.0,0.00019352,2]
[358858396,1745489439451,-151.0,0.00019352,2]
[358858398,1745489439461,-177.331041,0.00019352,2]
[358858399,1745489439470,-177.331041,0.00019352,2]
[358858400,1745489439480,-179.01207403,0.00019352,2]
[358858401,1745489439489,-70509.00709987,0.00019352,2]
[358858402,1745489439512,-299490.99290013,0.00019352,2]
[358858403,1745489439522,-500.0,0.00019373,2]
[358858404,1745489439531,-500.71926778,0.00019373,2]
[358858405,1745489439541,-500.0,0.00019373,2]
[358858406,1745489439551,-500.0,0.00019373,2]
[358858407,1745489439561,-500.0,0.00019373,2]
[358858408,1745489439570,-500.0,0.00019373,2]
[358858409,1745489439581,-500.0,0.00019373,2]
[358858410,1745489439591,-500.0,0.00019373,2]
[358858411,1745489439602,-500.0,0.00019373,2]
[358858412,1745489439611,-501.13427036,0.00019373,2]
[358858413,1745489439621,-500.0,0.00019373,2]
[358858414,1745489439633,-500.0,0.00019373,2]
[358858415,1745489439644,-268.87156398,0.00019373,2]
[358858416,1745489439655,-500.0,0.00019373,2]
[358858417,1745489439665,-500.0,0.00019373,2]
[358858418,1745489439676,-500.0,0.00019373,2]
[358858419,1745489439687,-500.0,0.00019373,2]
[358858420,1745489439701,-500.0,0.00019373,2]
[358858421,1745489439714,-500.0,0.00019373,2]
[358858422,1745489439725,-500.8534712,0.00019373,2]
[358858423,1745489439736,-500.0,0.00019373,2]
[358858424,1745489439747,-500.0,0.00019373,2]
[358858425,1745489439758,-300.0,0.00019373,2]
[358858426,1745489439768,-151.0,0.00019397,2]
[358858427,1745489439779,-443.40964339,0.00019397,2]
[358858428,1745489439789,-309.4201225,0.00019397,2]
[358858429,1745489439798,-500.0,0.00019397,2]
[358858430,1745489439809,-256.68268415,0.00019397,2]
[358858431,1745489439820,-500.0,0.00019397,2]
[358858432,1745489439830,-500.0,0.00019397,2]
[358858433,1745489439841,-245.0,0.00019452,2]
[358858434,1745489439850,-501.79761965,0.00019452,2]
[358858435,1745489439860,-500.0,0.00019452,2]
[358858436,1745489439870,-500.0,0.00019452,2]
[358858437,1745489439880,-596.34,0.00019452,2]
[358858438,1745489439890,-500.0,0.00019452,2]
[358858439,1745489439899,-500.0,0.00019452,2]
[358858440,1745489439909,-500.0,0.00019452,2]
[358858441,1745489439918,-500.0,0.00019452,2]
[358858442,1745489439927,-500.0,0.00019452,2]
[358858443,1745489439938,-500.0,0.00019452,2]
[358858444,1745489439948,-500.0,0.00019452,2]
[358858445,1745489439957,-500.0,0.00019452,2]
[358858447,1745489439966,-500.0,0.00019452,2]
[358858448,1745489439976,-1027.64,0.00019452,2]
[358858450,1745489439986,-500.0,0.00019452,2]
[358858452,1745489439996,-500.0,0.00019452,2]
[358858454,1745489440006,-500.0,0.00019452,2]
[358858456,1745489440016,-500.0,0.00019452,2]
[358858458,1745489440025,-500.0,0.00019452,2]
[358858460,1745489440034,-500.0,0.00019452,2]
[358858463,1745489440043,-500.0,0.00019452,2]
[358858465,1745489440052,-500.0,0.00019452,2]
[358858467,1745489440062,-500.0,0.00019452,2]
[358858469,1745489440071,-365.86173935,0.00019452,2]
[358858471,1745489440080,-299.84692015,0.00019452,2]
[358858472,1745489440089,-500.0,0.00019452,2]
[358858474,1745489440098,-500.0,0.00019452,2]
[358858476,1745489440108,-768.56,0.00019452,2]
[358858478,1745489440117,-1069.01,0.00019452,2]
[358858480,1745489440127,-546.49436225,0.00019452,2]
[358858482,1745489440138,-500.0,0.00019452,2]
[358858484,1745489440148,-500.0,0.00019452,2]
[358858486,1745489440158,-152.664651,0.00019452,2]
[358858488,1745489440168,-500.0,0.00019452,2]
[358858490,1745489440178,-500.0,0.00019452,2]
[358858492,1745489440187,-500.0,0.00019452,2]
[358858494,1745489440197,-500.0,0.00019452,2]
[358858496,1745489440207,-715.59,0.00019452,2]
[358858498,1745489440217,-500.0,0.00019452,2]
[358858500,1745489440227,-500.0,0.00019452,2]
[358858502,1745489440236,-500.0,0.00019452,2]
[358858504,1745489440246,-500.0,0.00019452,2]
[358858507,1745489440256,-500.0,0.00019452,2]
[358858509,1745489440266,-530.07,0.00019452,2]
[358858511,1745489440275,-500.0,0.00019452,2]
[358858514,1745489440284,-151.0,0.00019452,2]
[358858516,1745489440294,-500.0,0.00019452,2]
[358858519,1745489440303,-500.0,0.00019452,2]
[358858521,1745489440313,-733.9,0.00019452,2]
[358858524,1745489440323,-500.0,0.00019452,2]
[358858526,1745489440332,-680.21,0.00019452,2]
[358858529,1745489440343,-500.0,0.00019452,2]
[358858531,1745489440352,-530.12,0.00019452,2]
[358858534,1745489440362,-2568.91,0.00019452,2]
[358858536,1745489440371,-1138.04,0.00019452,2]
[358858539,1745489440382,-748.71,0.00019452,2]
[358858542,1745489440392,-889.41,0.00019452,2]
[358858544,1745489440402,-500.0,0.00019452,2]
[358858546,1745489440412,-762.04,0.00019452,2]
[358858548,1745489440422,-500.0,0.00019452,2]
[358858550,1745489440432,-500.0,0.00019452,2]
[358858552,1745489440442,-500.0,0.00019452,2]
[358858554,1745489440452,-520.09277832,0.00019452,2]
[358858556,1745489440462,-1037.35,0.00019452,2]
[358858558,1745489440472,-1310.64,0.00019452,2]
[358858560,1745489440482,-606.59,0.00019452,2]
[358858562,1745489440492,-799.9,0.00019452,2]
[358858564,1745489440502,-500.0,0.00019452,2]
[358858566,1745489440512,-1707.04,0.00019452,2]
[358858568,1745489440522,-692.61,0.00019452,2]
[358858569,1745489440532,-518.47225159,0.00019452,2]
[358858571,1745489440542,-609.36,0.00019452,2]
[358858573,1745489440552,-527.08090028,0.00019452,2]
[358858575,1745489440562,-500.0,0.00019452,2]
[358858577,1745489440572,-500.0,0.00019452,2]
[358858579,1745489440582,-500.0,0.00019452,2]
[358858581,1745489440591,-500.0,0.00019452,2]
[358858583,1745489440602,-562.41,0.00019452,2]
[358858585,1745489440612,-500.0,0.00019452,2]
[358858587,1745489440622,-500.0,0.00019452,2]
[358858589,1745489440632,-1256.09,0.00019452,2]
[358858591,1745489440642,-500.0,0.00019452,2]
[358858593,1745489440652,-3272.68,0.00019452,2]
[358858595,1745489440662,-534.86129718,0.00019452,2]
[358858597,1745489440672,-500.0,0.00019452,2]
[358858599,1745489440682,-1170.88,0.00019452,2]
[358858601,1745489440692,-517.92,0.00019452,2]
[358858603,1745489440706,-500.0,0.00019452,2]
[358858605,1745489440716,-151.0,0.00019452,2]
[358858607,1745489440726,-151.0,0.00019452,2]
[358858609,1745489440735,-1132.42,0.00019452,2]
[358858611,1745489440746,-500.0,0.00019452,2]
[358858613,1745489440756,-723.12,0.00019452,2]
[358858615,1745489440766,-1376.99,0.00019452,2]
[358858617,1745489440776,-500.0,0.00019452,2]
[358858619,1745489440786,-775.42,0.00019452,2]
[358858621,1745489440797,-500.0,0.00019452,2]
[358858623,1745489440806,-151.0,0.00019452,2]
[358858625,1745489440815,-500.0,0.00019452,2]
[358858627,1745489440825,-500.0,0.00019452,2]
[358858629,1745489440834,-1124.79,0.00019452,2]
[358858631,1745489440844,-533.8,0.00019452,2]
[358858632,1745489440854,-500.0,0.00019452,2]
[358858634,1745489440864,-559.68,0.00019452,2]
[358858636,1745489440874,-500.0,0.00019452,2]
[358858638,1745489440884,-500.0,0.00019452,2]
[358858640,1745489440893,-1041.22,0.00019452,2]
[358858642,1745489440903,-2174.1,0.00019452,2]
[358858644,1745489440913,-500.0,0.00019452,2]
[358858646,1745489440923,-513.01,0.00019452,2]
[358858648,1745489440932,-509.09866104,0.00019452,2]
[358858650,1745489440942,-500.0,0.00019452,2]
[358858652,1745489440952,-500.0,0.00019452,2]
[358858654,1745489440962,-277.09989364,0.00019452,2]
[358858705,1745489441470,-222.90010636,0.00019452,2]
[358858707,1745489441481,-500.0,0.00019452,2]
[358858709,1745489441490,-655.92,0.00019452,2]
[358858711,1745489441500,-327.04652655,0.00019452,2]
[358858723,1745489441612,193.29626298,0.00015475,2]
[358858746,1745489441830,-705.93763268,0.00015475,2]
[358858748,1745489441850,-1915.68258115,0.00015475,2]
[358858750,1745489441862,-500.0,0.00019178,2]
[358858752,1745489441872,-500.0,0.00019178,2]
[358858754,1745489441883,-151.0,0.00019352,2]
[358858756,1745489441893,-172.95347345,0.00019452,2]
[358858758,1745489441903,-514.54,0.00019452,2]
[358858760,1745489441914,-500.0,0.00019452,2]
[358858762,1745489441923,-151.0,0.00019452,2]
[358858764,1745489441933,-500.0,0.00019452,2]
[358858766,1745489441942,-670.98,0.00019452,2]
[358858768,1745489441951,-719.07,0.00019452,2]
[358858770,1745489441961,-500.0,0.00019452,2]
[358858772,1745489441970,-1121.26,0.00019452,2]
[358858774,1745489441979,-500.0,0.00019452,2]
[358858776,1745489441988,-500.0,0.00019452,2]
[358858778,1745489441998,-500.0,0.00019452,2]
[358858780,1745489442007,-152.01562,0.00019452,2]
[358858782,1745489442016,-853.69,0.00019452,2]
[358858784,1745489442025,-500.0,0.00019452,2]
[358858786,1745489442035,-500.0,0.00019452,2]
[358858788,1745489442044,-631.44,0.00019452,2]
[358858790,1745489442053,-151.0,0.00019452,2]
[358858792,1745489442063,-500.0,0.00019452,2]
[358858794,1745489442071,-500.0,0.00019452,2]
[358858796,1745489442082,-500.0,0.00019452,2]
[358858798,1745489442091,-500.0,0.00019452,2]
[358858800,1745489442101,-500.0,0.00019452,2]
[358858802,1745489442111,-151.0,0.00019452,2]
[358858804,1745489442120,-500.83553749,0.00019452,2]
[358858806,1745489442130,-500.0,0.00019452,2]
[358858808,1745489442139,-500.0,0.00019452,2]
[358858810,1745489442148,-156.338475,0.00019452,2]
[358858812,1745489442158,-500.0,0.00019452,2]
[358858814,1745489442167,-500.0,0.00019452,2]
[358858816,1745489442176,-500.0,0.00019452,2]
[358858818,1745489442186,-598.03,0.00019452,2]
[358858820,1745489442195,-500.0,0.00019452,2]
[358858822,1745489442204,-500.0,0.00019452,2]
[358858824,1745489442214,-500.0,0.00019452,2]
[358858826,1745489442223,-375.36932639,0.00019452,2]
[358858828,1745489442232,-500.0,0.00019452,2]
[358858830,1745489442241,-500.0,0.00019452,2]
[358858832,1745489442250,-531.61916282,0.00019452,2]
[358858834,1745489442259,-624.40303716,0.00019452,2]
[358858836,1745489442268,-500.0,0.00019452,2]
[358858838,1745489442277,-151.0,0.00019452,2]
[358858840,1745489442287,-346.48525839,0.00019452,2]
[358858842,1745489442296,-500.0,0.00019452,2]
[358858844,1745489442308,-500.0,0.00019452,2]
[358858846,1745489442317,-500.0,0.00019452,2]
[358858848,1745489442327,-500.0,0.00019452,2]
[358858849,1745489442336,-177.331041,0.00019452,2]
[358858852,1745489442345,-2024.88,0.00019452,2]
[358858853,1745489442355,-177.331041,0.00019452,2]
[358858855,1745489442364,-1098.13,0.00019452,2]
[358858857,1745489442373,-500.0,0.00019452,2]
[358858859,1745489442382,-500.0,0.00019452,2]
[358858861,1745489442391,-533.53,0.00019452,2]
[358858863,1745489442401,-513.81,0.00019452,2]
[358858865,1745489442410,-500.0,0.00019452,2]
[358858867,1745489442420,-1754.72,0.00019452,2]
[358858869,1745489442429,-901.96,0.00019452,2]
[358858871,1745489442439,-500.0,0.00019452,2]
[358858873,1745489442449,-1124.14,0.00019452,2]
[358858875,1745489442458,-500.0,0.00019452,2]
[358858877,1745489442467,-1367.86,0.00019452,2]
[358858879,1745489442477,-581.52,0.00019452,2]
[358858881,1745489442487,-587.18,0.00019452,2]
[358858883,1745489442496,-500.0,0.00019452,2]
[358858885,1745489442506,-916.63,0.00019452,2]
[358858887,1745489442515,-500.0,0.00019452,2]
[358858889,1745489442524,-151.0,0.00019452,2]
[358858891,1745489442534,-500.0,0.00019452,2]
[358858893,1745489442543,-151.0,0.00019452,2]
[358858895,1745489442553,-661.66,0.00019452,2]
[358858897,1745489442562,-4282.21,0.00019452,2]
[358858898,1745489442571,-3887.48,0.00019452,2]
[358858901,1745489442581,-579.52,0.00019452,2]
[358858902,1745489442591,-500.0,0.00019452,2]
[358858904,1745489442601,-503.04020327,0.00019452,2]
[358858906,1745489442610,-546.89,0.00019452,2]
[358858908,1745489442620,-471.14526166,0.00019452,2]
[358858910,1745489442629,-567.52,0.00019452,2]
[358858912,1745489442639,-500.0,0.00019452,2]
[358858914,1745489442649,-1185.64,0.00019452,2]
[358858916,1745489442658,-931.76,0.00019452,2]
[358858918,1745489442667,-500.0,0.00019452,2]
[358858920,1745489442677,-5074.33,0.00019452,2]
[358858922,1745489442687,-500.0,0.00019452,2]
[358858924,1745489442696,-500.0,0.00019452,2]
[358858926,1745489442707,-500.0,0.00019452,2]
[358858928,1745489442717,-582.01596403,0.00019452,2]
[358858930,1745489442726,-1553.83,0.00019452,2]
[358858932,1745489442735,-864.12,0.00019452,2]
[358858934,1745489442744,-911.589968,0.00019452,2]
[358858936,1745489442754,-911.589968,0.00019452,2]
[358858938,1745489442763,-500.0,0.00019452,2]
[358858940,1745489442772,-886.11,0.00019452,2]
[358858942,1745489442782,-500.0,0.00019452,2]
[358858943,1745489442791,-911.589968,0.00019452,2]
[358858945,1745489442800,-911.589968,0.00019452,2]
[358858947,1745489442810,-500.0,0.00019452,2]
[358858949,1745489442819,-500.0,0.00019452,2]
[358858951,1745489442828,-500.0,0.00019452,2]
[358858953,1745489442837,-1443.83,0.00019452,2]
[358858955,1745489442846,-509.0,0.00019452,2]
[358858957,1745489442856,-1192.53,0.00019452,2]
[358858959,1745489442865,-615.55,0.00019452,2]
[358858961,1745489442875,-500.0,0.00019452,2]
[358858963,1745489442884,-500.0,0.00019452,2]
[358858965,1745489442894,-3805.81,0.00019452,2]
[358858967,1745489442903,-2046.51,0.00019452,2]
[358858969,1745489442912,-151.0,0.00019452,2]
[358858971,1745489442922,-151.0,0.00019452,2]
[358858973,1745489442931,-386.90797935,0.00019452,2]
[358858975,1745489442940,-678.09,0.00019452,2]
[358858977,1745489442950,-500.0,0.00019452,2]
[358858979,1745489442959,-500.0,0.00019452,2]
[358858981,1745489442969,-500.0,0.00019452,2]
[358858983,1745489442978,-562.85,0.00019452,2]
[358858985,1745489442987,-632.41,0.00019452,2]
[358858987,1745489442996,-528.23057911,0.00019452,2]
[358858989,1745489443005,-500.0,0.00019452,2]
[358858991,1745489443014,-500.0,0.00019452,2]
[358858993,1745489443024,-534.50746117,0.00019452,2]
[358858995,1745489443033,-500.0,0.00019452,2]
[358858997,1745489443042,-188.0538308,0.00019452,2]
[358858999,1745489443052,-412.07051401,0.00019452,2]
[358859001,1745489443062,-912.5,0.00019452,2]
[358859003,1745489443071,-500.0,0.00019452,2]
[358859005,1745489443081,-1401.19,0.00019452,2]
[358859008,1745489443090,-500.0,0.00019452,2]
[358859010,1745489443099,-157.21524811,0.00019452,2]
[358859012,1745489443109,-327.59220165,0.00019452,2]
[358859014,1745489443119,-874.28,0.00019452,2]
[358859015,1745489443127,-510.36758078,0.00019452,2]
[358859017,1745489443137,-500.0,0.00019452,2]
[358859019,1745489443146,-873.15,0.00019452,2]
[358859021,1745489443155,-3143.72,0.00019452,2]
[358859023,1745489443164,-500.0,0.00019452,2]
[358859025,1745489443173,-500.0,0.00019452,2]
[358859027,1745489443183,-500.0,0.00019452,2]
[358859029,1745489443192,-500.0,0.00019452,2]
[358859031,1745489443202,-500.0,0.00019452,2]
[358859033,1745489443211,-500.0,0.00019452,2]
[358859035,1745489443220,-500.0,0.00019452,2]
[358859037,1745489443229,-500.0,0.00019452,2]
[358859039,1745489443239,-500.0,0.00019452,2]
[358859041,1745489443249,-500.0,0.00019452,2]
[358859043,1745489443258,-997.02,0.00019452,2]
[358859046,1745489443267,-500.0,0.00019452,2]
[358859050,1745489443276,-4790.61,0.00019452,2]
[358859053,1745489443286,-813.07,0.00019452,2]
[358859056,1745489443295,-1112.09,0.00019452,2]
[358859058,1745489443305,-500.0,0.00019452,2]
[358859060,1745489443314,-500.0,0.00019452,2]